Cogmind - Beta 13 @@@ ROGUE MODE // 2024.04.28 @ 16:50:00 Player: Fazzonamite Result: Destroyed by Alpha 7 with Multirail Performance ------------- Evolutions (7) 3500 Regions Visited (14) 2800 Robots Destroyed (77) 385 Value Destroyed (3501) 3501 Prototype IDs (2) 40 Alien Tech Used (0) 0 Bonus (2856) 2856 TOTAL SCORE: 13082 Bonus ------- High Alert Combat Kills 149 Follower Combat Kills 754 Acquired SGEMP 2000 Friendly Fire -47 Cogmind --------- Core Integrity 0/1300 Matter 139/300 Energy 68/100 System Corruption 0% Temperature Cool (12) Movement Core (200) Ox3 Location -3/Testing Parts ------- > --- POWER (2) -------- (None) > --- PROPULSION (6) --- (None) > --- UTILITY (10) ----- Medium Storage Unit Improved Targeting Computer Target Analyzer Armor Integrity Analyzer > --- WEAPON (3) ------- (None) > --- INVENTORY (10) --- Advanced Datajack SGEMP Prototype Peak State ------------ > --- POWER ------------ Micro Fission Core Light Quantum Reactor > --- PROPULSION ------- Armored Leg Armored Leg Impulse Thruster Impulse Thruster Q-thruster Cooled Impulse Thruster > --- UTILITY ---------- Advanced Heat Sink Medium Storage Unit Machine Analyzer Advanced Terrain Scanner Improved Targeting Computer Advanced Targeting Computer Target Analyzer Armor Integrity Analyzer Hacking Suite > --- WEAPON ----------- Compact HERF Cannon Enhanced Gauss Cannon Powered Hammer > --- INVENTORY -------- Advanced Reaction Control System Makeshift Light Armor Plating Improved Arc Projector Improved Arc Projector Quantum Rifle Rocket Launcher Advanced Datajack [Rating: 107] Favorites ----------- Power Light Ion Engine Engine Light Ion Engine Power Core Micro Fission Core Reactor Light Quantum Reactor Propulsion Armored Leg Leg Armored Leg Wheel Wheel Flight Unit Impulse Thruster Utility Large Storage Unit Device Improved Heat Sink Storage Large Storage Unit Processor Target Analyzer Hackware Hacking Suite Protection Hardened Medium Armor Plating Weapon Rocket Launcher Energy Gun Beam Rifle Energy Cannon Heavy Plasma Cannon Ballistic Gun Assault Rifle Ballistic Cannon Gauss Cannon Launcher Rocket Launcher Impact Weapon Powered Hammer Special Melee Weapon Improved Datajack Build | -11 -10 -10 -10 -9 -8 -7 -6 -6 -5 -4 -4 -4 -3 -3 ------- Run | Yrd Mat Min Exi Min Mat Fac Fac Ext Fac Fac Upp Upp Res Tes Slots Evolved 14 | . . . . . 4 2 2 . 2 2 . . 2 . Power 1 | . . . . . . . . . . 1 . . . . Propulsion 4 | . . . . . 2 . 1 . . 1 . . . . Utility 8 | . . . . . 2 2 . . 2 . . . 2 . Weapon 1 | . . . . . . . 1 . . . . . . . Parts Attached 130 | 6 3 2 . 3 8 19 11 19 17 8 3 5 8 18 Power 14 | 1 . 1 . 1 . 2 1 2 2 1 . . 1 2 Engine 8 | 1 . 1 . 1 . 1 1 1 2 . . . . . Core 4 | . . . . . . 1 . 1 . 1 . . . 1 Reactor 2 | . . . . . . . . . . . . . 1 1 Propulsion 29 | 2 . . . 2 2 3 3 6 2 2 . 1 2 4 Treads . | . . . . . . . . . . . . . . . Leg 21 | . . . . 2 2 3 3 6 2 2 . 1 . . Wheel 2 | 2 . . . . . . . . . . . . . . Hover . | . . . . . . . . . . . . . . . Flight 6 | . . . . . . . . . . . . . 2 4 Utility 45 | 1 3 . . . 3 9 5 3 9 3 1 1 3 4 Device 12 | . . . . . 2 1 1 2 1 1 . 1 1 2 Storage 5 | 1 2 . . . . . . . 1 . 1 . . . Processor 11 | . 1 . . . . 3 2 . 2 1 . . 2 . Hackware 3 | . . . . . . 1 . . 1 1 . . . . Protection 14 | . . . . . 1 4 2 1 4 . . . . 2 Artifact . | . . . . . . . . . . . . . . . Weapon 42 | 2 . 1 . . 3 5 2 8 4 2 2 3 2 8 Energy Gun 6 | . . . . . 1 1 . 1 . . . . . 3 Energy Cannon 6 | . . . . . . . 1 . 1 1 . . 1 2 Ballistic Gun 13 | 2 . . . . 2 1 1 5 1 . . . . 1 Ballistic Cannon 7 | . . . . . . 2 . . . . 2 2 . 1 Launcher 6 | . . 1 . . . 1 . . 1 1 . 1 . 1 Special Weapon . | . . . . . . . . . . . . . . . Impact Weapon 2 | . . . . . . . . . 1 . . . 1 . Slashing Weapon . | . . . . . . . . . . . . . . . Piercing Weapon . | . . . . . . . . . . . . . . . Special Melee Weapon 2 | . . . . . . . . 2 . . . . . . Unidentified Prototypes 2 | . . . . . . . . . . . . . 1 1 Parts Lost 52 | . . . . . . 5 1 6 13 1 2 3 . 21 Power 6 | . . . . . . 1 . 1 2 . . . . 2 Propulsion 10 | . . . . . . . . . 2 1 1 2 . 4 Utility 20 | . . . . . . 3 1 2 6 . . 1 . 7 Weapon 16 | . . . . . . 1 . 3 3 . 1 . . 8 Highest Loss Streak 21 | . . . . . . 2 1 2 9 1 2 2 . 21 To Critical Strikes 1 | . . . . . . . . . . . . . . 1 Average Slot Usage (%) 90 | . 94 100 100 100 100 99 95 92 96 87 76 72 69 75 Engine 5 | . 14 14 14 14 9 4 3 3 . . . . . . Core 2 | . . . . . . 2 2 2 3 5 5 5 4 3 Leg 19 | . . . . 13 36 30 32 33 28 26 16 11 9 5 Wheel 5 | . 28 28 28 14 . . . . . . . . . . Device 3 | . . . . . 9 6 . 5 5 3 5 3 6 8 Storage 7 | . 14 14 14 14 9 7 6 6 5 5 5 5 4 4 Processor 18 | . 8 14 14 14 9 17 15 13 20 26 26 26 20 24 Hackware 2 | . . . . . . 2 . . 2 5 5 5 4 3 Protection 3 | . . . . . 9 9 12 6 6 . . . . 1 Energy Gun 2 | . . . . . . 7 6 2 4 . . . . . Energy Cannon 1 | . . . . . . . . 6 2 5 1 . . 2 Ballistic Gun 7 | . 28 21 14 14 13 2 12 8 5 . . . . . Ballistic Cannon 2 | . . . . . . 4 . . . . 7 10 7 2 Launcher 3 | . . 7 14 14 4 . . . 1 5 1 4 . . Naked Turns . | . . . . . . . . . . . . . . . Heaviest Build 62 | 11 26 29 29 29 33 45 57 57 62 44 44 41 56 52 Greatest Support 86 | 26 26 26 26 26 40 50 73 86 84 84 68 52 32 32 Greatest Overweight (x) 5 | 1 . 1 1 1 . 1 . . . . . 1 1 5 Average Overweight (x) . | . . . 1 1 . . . . . . . . 1 . Largest Inventory Capacity 15 | 8 15 15 15 15 15 15 15 15 15 15 10 10 10 10 Average Capacity 13 | 7 12 15 15 15 15 15 15 15 15 15 9 10 10 10 Most Carried 15 | 5 13 13 13 15 15 15 15 15 15 9 10 10 10 10 Average Carried 11 | 1 6 12 13 14 12 14 14 14 13 4 8 9 9 9 Final Capacity 15 | 8 15 15 15 15 15 15 15 15 15 15 10 10 10 10 Final Carried 15 | 1 13 13 13 14 15 15 13 15 10 6 10 10 10 3 Class Distribution -------------------- 56% | Mutant 14% | Scavenger-Gunner 10% | Bomber 4% | Scavenger-Skirmisher 4% | Scavenger-Tank 4% | Commander-Gunner Dominant Class ---------------- Mutant | -10/Materials Mutant | -10/Mines Mutant | -10/Exiles Mutant | -9/Mines Mutant | -8/Materials Mutant | -7/Factory Scavenger-Tank | -6/Factory Scavenger-Gunner | -6/Extension Scavenger-Gunner | -5/Factory Mutant | -4/Factory Mutant | -4/Upper Caves Bomber | -4/Upper Caves Mutant | -3/Research Mutant | -3/Testing Resources | -11 -10 -10 -10 -9 -8 -7 -6 -6 -5 -4 -4 -4 -3 -3 ----------- Run | Yrd Mat Min Exi Min Mat Fac Fac Ext Fac Fac Upp Upp Res Tes Matter Collected 2510 | 260 106 37 . 88 94 282 209 660 160 34 272 258 . 50 Remotely . | . . . . . . . . . . . . . . . Salvage Created 2890 | . 212 16 . 121 109 423 326 715 530 34 91 208 . 105 Parts 152 | . 18 5 . 13 12 24 20 34 19 . 3 3 . 1 Haulers Intercepted . | . . . . . . . . . . . . . . . Recyclers Shooed 1 | . . . . . . . 1 . . . . . . . Parts Field Recycled . | . . . . . . . . . . . . . . . Retrieved Matter . | . . . . . . . . . . . . . . . Parts Self-Destructed 5 | . . . . . . . . . . . 3 2 . . Prevented 2 | . . . . . . . . . . . . 2 . . Kills | -11 -10 -10 -10 -9 -8 -7 -6 -6 -5 -4 -4 -4 -3 -3 ------- Run | Yrd Mat Min Exi Min Mat Fac Fac Ext Fac Fac Upp Upp Res Tes Combat Hostiles Destroyed 70 | . 5 3 . 7 2 13 8 13 9 . 2 6 . 2 Guns 33 | . 5 1 . 2 2 5 7 7 4 . . . . . Cannons 17 | . . . . . . 5 . 6 . . 2 4 . . AOE 17 | . . 2 . 5 . 3 . . 5 . . 2 . . Classes Destroyed 13 | . 4 . . . 1 2 3 . 1 . . 1 . 1 Worker 2 | . 1 . . . . . . . 1 . . . . . Builder 1 | . . . . . . . 1 . . . . . . . Mechanic 1 | . . . . . . . . . 1 . . . . . Watcher 3 | . 2 . . . . . . . . 1 . . . . Swarmer 20 | . 3 3 . 4 . 2 5 3 . . . . . . Grunt 24 | . 2 . . 3 . 4 . 6 3 . 2 4 . . Brawler 4 | . . . . . . . 1 . 3 . . . . . Duelist 1 | . . . . . . . 1 . . . . . . . Sentry 9 | . . . . . 2 2 . 4 . . . 1 . . Hunter 2 | . . . . . . 2 . . . . . . . . Programmer 7 | . . . . . . 3 1 . 3 . . . . . Striker 2 | . . . . . . . . . . . . . . 2 Mutant 1 | . . . . . . . . . . . . 1 . . Best Kill Streak 6 | . 4 3 . 4 1 5 4 5 6 1 2 4 . 2 Combat Bots Only 6 | . 3 3 . 4 1 5 4 5 6 . 2 4 . 2 Max Kills in Single Turn 3 | . 1 2 . 2 1 3 2 1 3 1 1 2 . 1 Gunslinging . | . . . . . . . . . . . . . . . Exploded 3 | . . 2 . 2 . 3 . . 3 . . 2 . . Melee . | . . . . . . . . . . . . . . . Uniques/NPCs Destroyed . | . . . . . . . . . . . . . . . Combat | -11 -10 -10 -10 -9 -8 -7 -6 -6 -5 -4 -4 -4 -3 -3 -------- Run | Yrd Mat Min Exi Min Mat Fac Fac Ext Fac Fac Upp Upp Res Tes Hostile Shots Fired 916 | . 13 7 . 18 10 166 32 208 189 8 26 44 5 190 Missed 269 | . 3 3 . 5 1 57 5 70 55 5 7 9 1 48 Damage Taken 11247 | . 84 30 . 194 141 1159 542 1641 3015 62 408 762 84 3125 Core 2104 | . 18 9 . 20 31 120 71 107 255 . 60 108 . 1305 Absorbed by Shields 23 | . . . . . . . . 23 . . . . . . Redirected to Shielding 317 | . . . . . . 103 65 36 . . . . . 113 Core Remaining (%) 85 | 100 . . . 81 94 82 . 79 74 . . 85 . . Volleys Fired 191 | . 20 2 . 10 6 36 17 36 26 2 10 17 . 9 Largest 3 | . 2 2 . 1 2 2 3 3 3 1 3 3 . 2 Hottest 203 | . 40 53 . 33 40 104 109 203 203 81 194 146 . 188 Shots Fired 417 | . 40 3 . 10 12 72 51 104 59 2 22 31 . 11 Gun 283 | . 40 2 . 7 12 46 51 68 51 . . . . 6 Cannon 119 | . . . . . . 23 . 36 7 2 22 25 . 4 Launcher 15 | . . 1 . 3 . 3 . . 1 . . 6 . 1 Special . | . . . . . . . . . . . . . . . Kinetic 257 | . 40 2 . 7 12 33 34 51 27 . 20 25 . 6 Thermal 134 | . . . . . . 36 17 53 27 . . . . 1 Explosive 15 | . . 1 . 3 . 3 . . 1 . . 6 . 1 Electromagnetic 11 | . . . . . . . . . 4 2 2 . . 3 Robot Hit Streak 24 | . 9 2 . 7 14 16 9 9 24 2 12 22 . 9 Robot Miss Streak 9 | . 3 1 . 2 . 2 4 5 9 1 2 1 . 1 Penetration Max 1 | . . . . . . . 1 1 1 . 1 . . . Secondary Targets 2 | . . . . . . . 2 . . . . . . . Max Gunslinging Chain 1 | . . . . . . . 1 . . . . . . . Shots Hit Robots 309 | . 26 2 . 7 12 53 33 73 44 2 18 24 . 15 Core Hits 165 | . 13 3 . 9 6 29 14 36 25 . 7 19 . 4 Critical Kills 4 | . . . . . . . 1 2 1 . . . . . Critical Parts Destroyed 4 | . . . . . . . . 1 1 . . . . 2 Critical Strikes 30 | . . . . . . 9 5 3 2 1 4 4 . 2 Burn 10 | . . . . . . 6 4 . . . . . . . Destroy 7 | . . . . . . . 1 3 2 . . . . 1 Blast 11 | . . . . . . 3 . . . . 4 4 . . Corrupt 1 | . . . . . . . . . . 1 . . . . Smash 1 | . . . . . . . . . . . . . . 1 Melee Attacks 46 | . . . . . . . . 13 1 11 . . 5 16 Impact 33 | . . . . . . . . . 1 11 . . 5 16 Slashing . | . . . . . . . . . . . . . . . Piercing . | . . . . . . . . . . . . . . . Sneak Attacks 13 | . . . . . . . . 13 . . . . . . Combat Hostiles . | . . . . . . . . . . . . . . . Follow-up Attacks . | . . . . . . . . . . . . . . . Damage Inflicted 8953 | . 289 169 . 473 121 1614 679 1422 1719 74 682 1226 . 485 Guns 3535 | . 289 14 . 81 121 514 679 769 1005 . . . . 63 Cannons 2592 | . . . . . . 460 . 643 105 37 682 600 . 65 Explosions 2485 | . . 155 . 392 . 634 . . 572 . . 626 . 106 Melee 320 | . . . . . . . . . 32 37 . . . 251 Ramming 21 | . . . . . . 6 . 10 5 . . . . . Kinetic 3789 | . 289 14 . 81 121 539 481 516 414 . 682 600 . 52 Thermal 3237 | . . . . 99 . 915 198 896 1099 . . . . 30 Explosive 1429 | . . 155 . 293 . 154 . . 95 . . 626 . 106 Electromagnetic 157 | . . . . . . . . . 74 37 . . . 46 Impact 320 | . . . . . . . . . 32 37 . . . 251 Slashing . | . . . . . . . . . . . . . . . Piercing . | . . . . . . . . . . . . . . . Highest Corruption 6 | . . . . . . 2 6 6 6 . . . . . Average Corruption 3 | . . . . . . 1 3 6 4 . . . . . Corruption Purged . | . . . . . . . . . . . . . . . Corruption Blocked . | . . . . . . . . . . . . . . . Effects 34 | . . . . . . 1 4 18 11 . . . . . Message Errors 10 | . . . . . . . . 4 6 . . . . . Matter Fused 9 | . . . . . . . 1 6 2 . . . . . Heat Flow Errors 1 | . . . . . . . 1 . . . . . . . Energy Discharges 6 | . . . . . . . . 5 1 . . . . . Parts Rejected 2 | . . . . . . 1 . 1 . . . . . . Data Loss (minor) 2 | . . . . . . . . 1 1 . . . . . Data Loss (major) 2 | . . . . . . . . 1 1 . . . . . Misfires 1 | . . . . . . . 1 . . . . . . . Weapon Failures 1 | . . . . . . . 1 . . . . . . . Overload Shots . | . . . . . . . . . . . . . . . Overflow Damage 386 | . . . . 1 . 238 . . . 13 56 5 . 73 Projectiles 79 | . . . . . . 18 . . . . 56 5 . . Explosions 221 | . . . . 1 . 220 . . . . . . . . Melee 86 | . . . . . . . . . . 13 . . . 73 Knockbacks 19 | . . . . . . 2 . . . . 9 4 . 4 Impact 4 | . . . . . . . . . . . . . . 4 Kinetic 14 | . . . . . . 2 . . . . 8 4 . . Secondary 1 | . . . . . . . . . . . 1 . . . Self-Inflicted Damage 252 | . . . . 43 . . . . 135 . . 46 . 28 Shots 8 | . . . . 2 . . . . 2 . . 3 . 1 Rammed . | . . . . . . . . . . . . . . . Targets Rammed 4 | . . . . . . 1 . 1 2 . . . . . Kicked 4 | . . . . . . 1 . 1 2 . . . . . Crushed . | . . . . . . . . . . . . . . . Highest Temperature 518 | . 6 . . 4 6 222 254 518 252 20 296 78 . 113 Average Temperature 116 | . 6 . . 3 5 82 70 180 65 12 211 36 . 33 Received Heat Transfer 2239 | . 12 . . 48 36 204 . 484 633 . 130 278 . 414 Effects 17 | . . . . . . . . 15 . . 2 . . . Shutdowns 3 | . . . . . . . . 3 . . . . . . Energy Bleed 5 | . . . . . . . . 3 . . 2 . . . Interference 4 | . . . . . . . . 4 . . . . . . Matter Decay 2 | . . . . . . . . 2 . . . . . . Damage (minor) 3 | . . . . . . . . 3 . . . . . . Siege Activations . | . . . . . . . . . . . . . . . Robots Corrupted 1 | . . . . . . . . . . . . . . 1 Combat Hostiles 1 | . . . . . . . . . . . . . . 1 Parts Fried 6 | . . . . . . . . . . 3 . . . 3 Impact Corruptions 3 | . . . . . . . . . . 1 . . . 2 Robots Melted 1 | . . . . . . . 1 . . . . . . . Combat Hostiles 1 | . . . . . . . 1 . . . . . . . Parts Melted 8 | . . . . . . 5 1 1 1 . . . . . Heat Transferred 5915 | . . . . 100 . 1767 777 1584 1650 . . . . 37 Parts Sabotaged . | . . . . . . . . . . . . . . . Parts Stolen . | . . . . . . . . . . . . . . . Parts Stripped . | . . . . . . . . . . . . . . . Power Chain Reactions 1 | . . . . . . . . . 1 . . . . . Alert | -11 -10 -10 -10 -9 -8 -7 -6 -6 -5 -4 -4 -4 -3 -3 ------- Run | Yrd Mat Min Exi Min Mat Fac Fac Ext Fac Fac Upp Upp Res Tes Peak Influence 926 | . 212 174 . 322 95 225 200 567 926 395 . . 21 95 Initial 338 | . . 82 . . 5 42 95 41 277 338 . . . 11 Average 187 | . 95 87 . 166 32 116 102 176 581 367 . . 5 25 Maximum Alert Level 3 | . 1 . . 1 . 1 1 2 3 1 . . . . Low Security (%) 68 | 100 97 100 . 84 100 79 76 58 . . . . 100 100 Level 1 20 | . 2 . . 15 . 20 23 40 27 100 . . . . Level 2 5 | . . . . . . . . 1 40 . . . . . Level 3 4 | . . . . . . . . . 32 . . . . . Level 4 . | . . . . . . . . . . . . . . . Level 5 . | . . . . . . . . . . . . . . . High Security . | . . . . . . . . . . . . . . . Max Security . | . . . . . . . . . . . . . . . Squads Dispatched 16 | . 1 . . . . 4 2 1 7 1 . . . . Investigation 2 | . . . . . . 1 . . 1 . . . . . Extermination 3 | . . . . . . 1 1 . 1 . . . . . Reinforcement 10 | . 1 . . . . 2 1 1 4 1 . . . . Assault 1 | . . . . . . . . . 1 . . . . . Garrison . | . . . . . . . . . . . . . . . Intercept . | . . . . . . . . . . . . . . . Searches Triggered . | . . . . . . . . . . . . . . . Construction Impeded 1 | . . . . . . . 1 . . . . . . . Haulers Reinforced . | . . . . . . . . . . . . . . . Active Scanning Responses . | . . . . . . . . . . . . . . . Cargo Convoy Interrupts . | . . . . . . . . . . . . . . . Stealth | -11 -10 -10 -10 -9 -8 -7 -6 -6 -5 -4 -4 -4 -3 -3 --------- Run | Yrd Mat Min Exi Min Mat Fac Fac Ext Fac Fac Upp Upp Res Tes Distress Signals 3 | . 1 . . . . . . 1 . . . . . 1 Communications Jammed . | . . . . . . . . . . . . . . . Distress Signals . | . . . . . . . . . . . . . . . Times Spotted 148 | . 12 3 . 11 2 22 8 28 28 6 3 6 7 12 Peak Tracking Total 10 | . 3 3 . 4 1 7 4 7 8 2 3 4 6 10 Tactical Retreats 10 | . 1 . . . . . 1 3 3 . 1 . . 1 Traps | -11 -10 -10 -10 -9 -8 -7 -6 -6 -5 -4 -4 -4 -3 -3 ------- Run | Yrd Mat Min Exi Min Mat Fac Fac Ext Fac Fac Upp Upp Res Tes Traps Triggered 4 | . . . . . . . 1 . 2 1 . . . . Indirectly . | . . . . . . . . . . . . . . . Trap Hack Attempts . | . . . . . . . . . . . . . . . Triggered . | . . . . . . . . . . . . . . . Disarmed . | . . . . . . . . . . . . . . . Reprogrammed . | . . . . . . . . . . . . . . . Reused 3 | . . . . 1 . 2 . . . . . . . . Traps Extracted . | . . . . . . . . . . . . . . . Installed 4 | . . . . 2 . 2 . . . . . . . . Triggered 4 | . . . . 1 . 2 . . . . . 1 . . Most Traps Carried 3 | . . . . 3 2 2 . . . . . . . . Machines | -11 -10 -10 -10 -9 -8 -7 -6 -6 -5 -4 -4 -4 -3 -3 ---------- Run | Yrd Mat Min Exi Min Mat Fac Fac Ext Fac Fac Upp Upp Res Tes Machines Disabled 18 | . . . . 1 . 1 . 3 11 . . 1 . 1 Max in Single Turn 9 | . . . . 1 . 1 . 1 9 . . 1 . 1 Garrison Access 2 | . . . . . . . 1 . 1 . . . . . Machines Repaired . | . . . . . . . . . . . . . . . Machines Dismantled . | . . . . . . . . . . . . . . . Machines Sabotaged . | . . . . . . . . . . . . . . . Overloaded Fab Kills . | . . . . . . . . . . . . . . . Hacking | -11 -10 -10 -10 -9 -8 -7 -6 -6 -5 -4 -4 -4 -3 -3 --------- Run | Yrd Mat Min Exi Min Mat Fac Fac Ext Fac Fac Upp Upp Res Tes Machines Accessed 29 | . 3 . . . . 4 2 12 4 1 1 1 . 1 Terminals 23 | . 3 . . . . 3 1 12 2 1 . . . 1 Fabricators . | . . . . . . . . . . . . . . . Repair Stations . | . . . . . . . . . . . . . . . Recycling Units . | . . . . . . . . . . . . . . . Scanalyzers . | . . . . . . . . . . . . . . . Garrison Access 4 | . . . . . . 1 1 . 2 . . . . . Total Hacks 55 | . 6 . . . . 8 2 19 8 1 8 1 . 2 Successful 26 | . 4 . . . . 1 1 8 3 . 8 1 . . Failed 29 | . 2 . . . . 7 1 11 5 1 . . . 2 Catastrophic 7 | . . . . . . 1 1 2 3 . . . . . Database Lockouts . | . . . . . . . . . . . . . . . Manual . | . . . . . . . . . . . . . . . Terminals 40 | . 6 . . . . 6 1 19 5 1 . . . 2 Fabricators . | . . . . . . . . . . . . . . . Repair Stations . | . . . . . . . . . . . . . . . Recycling Units . | . . . . . . . . . . . . . . . Scanalyzers . | . . . . . . . . . . . . . . . Garrison Access 6 | . . . . . . 2 1 . 3 . . . . . Terminal Hacks 24 | . 4 . . . . 1 . 8 2 . 8 1 . . Record 9 | . . . . . . . . . 1 . 8 . . . Robot Analysis 1 | . . . . . . 1 . . . . . . . . Open Door 9 | . . . . . . . . 8 . . . 1 . . Emergency Access Points 1 | . . . . . . . . . 1 . . . . . Locate Traps 3 | . 3 . . . . . . . . . . . . . Zone Layout 1 | . 1 . . . . . . . . . . . . . Fabricator Hacks . | . . . . . . . . . . . . . . . Repair Station Hacks . | . . . . . . . . . . . . . . . Recycling Unit Hacks . | . . . . . . . . . . . . . . . Scanalyzer . | . . . . . . . . . . . . . . . Garrison Access Hacks 2 | . . . . . . . 1 . 1 . . . . . Seal Access 2 | . . . . . . . 1 . 1 . . . . . Unauthorized Hacks . | . . . . . . . . . . . . . . . Terminals . | . . . . . . . . . . . . . . . Fabricators . | . . . . . . . . . . . . . . . Repair Stations . | . . . . . . . . . . . . . . . Recycling Units . | . . . . . . . . . . . . . . . Scanalyzers . | . . . . . . . . . . . . . . . Garrison Access . | . . . . . . . . . . . . . . . Data Cores Recovered . | . . . . . . . . . . . . . . . Used . | . . . . . . . . . . . . . . . Hacking Detections 18 | . 1 . . . . 4 1 7 3 1 . . . 1 Full Trace Events 1 | . . . . . . 1 . . . . . . . . Feedback Events 1 | . . . . . . 1 . . . . . . . . Corruption 1 | . . . . . . 1 . . . . . . . . Feedback Blocked . | . . . . . . . . . . . . . . . Robot Schematics Acquired . | . . . . . . . . . . . . . . . Robots Built . | . . . . . . . . . . . . . . . Authchips . | . . . . . . . . . . . . . . . Time . | . . . . . . . . . . . . . . . Total Robot Build Rating . | . . . . . . . . . . . . . . . Part Schematics Acquired . | . . . . . . . . . . . . . . . Parts Built . | . . . . . . . . . . . . . . . Authchips . | . . . . . . . . . . . . . . . Time . | . . . . . . . . . . . . . . . Total Part Build Rating . | . . . . . . . . . . . . . . . Parts Repaired . | . . . . . . . . . . . . . . . Time . | . . . . . . . . . . . . . . . Parts Recycled . | . . . . . . . . . . . . . . . Recycled Matter . | . . . . . . . . . . . . . . . Retrieved Matter . | . . . . . . . . . . . . . . . Retrieved Components . | . . . . . . . . . . . . . . . Parts Scanalyzed . | . . . . . . . . . . . . . . . Part Schematics Acquired . | . . . . . . . . . . . . . . . Parts Damaged . | . . . . . . . . . . . . . . . Bothacking | -11 -10 -10 -10 -9 -8 -7 -6 -6 -5 -4 -4 -4 -3 -3 ------------ Run | Yrd Mat Min Exi Min Mat Fac Fac Ext Fac Fac Upp Upp Res Tes Used RIF Installer . | . . . . . . . . . . . . . . . Robots Hacked . | . . . . . . . . . . . . . . . Non-combat . | . . . . . . . . . . . . . . . Combat . | . . . . . . . . . . . . . . . Robot Hacks Applied . | . . . . . . . . . . . . . . . Relay Couplers Released . | . . . . . . . . . . . . . . . Fabnet Peak Effective % . | . . . . . . . . . . . . . . . Robots Rewired 7 | . . . . . . . . 7 . . . . . . Allies Hacked 1 | . . . . . . . . . 1 . . . . . Hacks Repelled . | . . . . . . . . . . . . . . . Allies | -11 -10 -10 -10 -9 -8 -7 -6 -6 -5 -4 -4 -4 -3 -3 -------- Run | Yrd Mat Min Exi Min Mat Fac Fac Ext Fac Fac Upp Upp Res Tes Total Allies 19 | . . 3 . 1 . . . 15 . . . . . . Largest Group 11 | . . 3 3 3 . . . 11 10 . . . . . Highest-Rated Group 434 | . . 40 40 47 . . . 434 270 . . . . . Highest-Rated Ally 159 | . . 16 16 31 . . . 159 31 . . . . . Total Orders . | . . . . . . . . . . . . . . . Ally Attacks 164 | . . . . 25 . . . 38 101 . . . . . Total Damage 3256 | . . . . 294 . . . 874 2088 . . . . . Kills 26 | . . . . 6 . . . 10 10 . . . . . Allies Corrupted . | . . . . . . . . . . . . . . . Allies Melted . | . . . . . . . . . . . . . . . Intel | -11 -10 -10 -10 -9 -8 -7 -6 -6 -5 -4 -4 -4 -3 -3 ------- Run | Yrd Mat Min Exi Min Mat Fac Fac Ext Fac Fac Upp Upp Res Tes Robot Analysis Total 1 | . . . . . . 1 . . . . . . . . Derelict Logs Recovered 5 | . . 1 . 2 . . . . . . . 2 . . Drone Launches . | . . . . . . . . . . . . . . . Drone Recoveries . | . . . . . . . . . . . . . . . Exploration | -11 -10 -10 -10 -9 -8 -7 -6 -6 -5 -4 -4 -4 -3 -3 ------------- Run | Yrd Mat Min Exi Min Mat Fac Fac Ext Fac Fac Upp Upp Res Tes Turns Passed 7925 | 39 382 518 293 853 203 1010 642 694 865 284 653 812 324 353 Spaces Moved 5654 | 30 327 525 273 605 132 678 468 420 608 192 510 457 156 273 Core 11 | 9 . . . . . . . . . . . . . 2 Treads . | . . . . . . . . . . . . . . . Legs 3935 | . . . . 212 132 678 468 420 608 192 510 457 156 102 Wheels 1539 | 21 327 525 273 393 . . . . . . . . . . Hover . | . . . . . . . . . . . . . . . Flight 169 | . . . . . . . . . . . . . . 169 Fastest Speed 29 | 50 90 90 105 105 120 120 120 120 120 120 120 120 190 29 Average Speed 120 | 88 90 96 105 134 120 120 120 120 120 120 120 162 190 91 Slowest Speed 300 | 100 90 105 105 190 120 190 120 120 120 120 120 190 190 300 Overloaded Moves . | . . . . . . . . . . . . . . . Propulsion Burnouts . | . . . . . . . . . . . . . . . Robots Hopped . | . . . . . . . . . . . . . . . Cave-ins Triggered . | . . . . . . . . . . . . . . . Exploration Rate (%) 41 | 4 61 72 71 94 15 24 11 64 21 6 75 64 6 38 Regions Visited 14 Branch Regions 7 Pre-discovered Areas 4 | . . 2 . . . . . . . . 1 1 . . Known Exits Taken 12 | . 1 1 1 1 1 1 1 1 1 1 1 1 . . Unknown Exits Taken 2 | 1 . . . . . . . . . . . . 1 . Scrap Searched 8 | . . 1 . 3 . . . . . . 2 2 . . Spaces Dug 42 | . . . . 12 . . . . . 10 . 8 3 9 Terrain Destroyed 199 | . . 14 . 28 . 27 . 14 50 10 1 42 3 10 Melee 22 | . . . . . . . . . . 10 . . 3 9 Projectile 29 | . . . . . . 3 . 14 4 . 1 7 . . AOE 148 | . . 14 . 28 . 24 . . 46 . . 35 . 1 Terrain Rammed . | . . . . . . . . . . . . . . . Walls Destroyed . | . . . . . . . . . . . . . . . Machines Disabled . | . . . . . . . . . . . . . . . Actions | -11 -10 -10 -10 -9 -8 -7 -6 -6 -5 -4 -4 -4 -3 -3 --------- Run | Yrd Mat Min Exi Min Mat Fac Fac Ext Fac Fac Upp Upp Res Tes Total 6329 | 42 378 530 279 636 165 802 515 533 685 224 529 498 174 339 Wait 142 | . 14 . 7 2 11 38 11 16 15 7 1 12 . 8 Move 5640 | 29 326 524 272 604 131 677 467 419 607 191 509 456 155 273 Hop . | . . . . . . . . . . . . . . . Pick Up 93 | 7 14 1 . 8 6 14 4 14 7 4 5 4 1 4 Fast Attach 25 | . . . . . 2 4 1 1 4 . 1 3 6 3 Attach 67 | 6 2 . . 2 4 6 6 6 9 8 . 2 1 15 Detach 8 | . . . . . . . . . 2 . . . 1 5 Swap 38 | . 1 2 . 1 2 9 4 12 4 . 2 . 1 . Drop 68 | . 1 1 . 7 3 15 5 13 8 . 1 4 4 6 Fire 191 | . 20 2 . 10 6 36 17 36 26 2 10 17 . 9 Melee 46 | . . . . . . . . 13 1 11 . . 5 16 Ram . | . . . . . . . . . . . . . . . Kick 4 | . . . . . . 1 . 1 2 . . . . . Crush . | . . . . . . . . . . . . . . . Escape Stasis 3 | . . . . . . . . 2 . 1 . . . . Rewire . | . . . . . . . . . . . . . . . Trap 4 | . . . . 2 . 2 . . . . . . . . Miscellaneous . | . . . . . . . . . . . . . . . Route ------- -11/Scrapyard -10/Materials (discovered 2 exits: *Mat / *Min) -10/Mines -10/Exiles -9/Mines (discovered 2 exits: *Mat x2) -8/Materials -7/Factory -6/Factory -6/Extension (discovered 2 exits: *Fac / [*Cet]) -5/Factory -4/Factory -4/Upper Caves -4/Upper Caves -3/Research (discovered 2 exits: Arm / *Tes) -3/Testing History --------- Turn | Location | Event 13 | -11/Scrapyard | Discovered new exit (range 16) 40 | -11/Scrapyard | Entered Materials 280 | -10/Materials | Discovered new exit (range 7) 287 | -10/Materials | Identified exit to Mines 314 | -10/Materials | Build established: Mutant 347 | -10/Materials | Discovered new exit (range 8) 352 | -10/Materials | Identified exit to Materials 422 | -10/Materials | Entered Mines 428 | -10/Mines | Assisted by bots powering up and referring to "LRC-V3" 550 | -10/Mines | Learned location of Storage (-9) 641 | -10/Mines | Received a Rocket Launcher from a helpful Derelict 935 | -10/Mines | Deemed a non-threat by the Exiles lab entrance 935 | -10/Mines | Discovered new exit (range 5) 939 | -10/Mines | Identified exit to Exiles 940 | -10/Mines | Entered Exiles 940 | -10/Exiles | Found Exiles lab abandoned 940 | -10/Exiles | Accompanied by 3 allies 1212 | -10/Exiles | Discovered new exit (range 12) 1223 | -10/Exiles | Identified exit to Mines 1233 | -10/Exiles | Entered Mines 1233 | -9/Mines | Accompanied by 3 allies 1420 | -9/Mines | Learned 2 Materials zone layouts 1429 | -9/Mines | Received a Mining Laser from a helpful Derelict 1495 | -9/Mines | Discovered new exit (range 9) 1514 | -9/Mines | Identified exit to Materials 1599 | -9/Mines | Discovered exit to Materials (range 7) 1638 | -9/Mines | Found a hidden stash of uninstalled traps 1646 | -9/Mines | Learned Materials trap positions 2086 | -9/Mines | Entered Materials 2086 | -8/Materials | Evolved 4 slots: Propulsion x2, Utility x2 2087 | -8/Materials | Identified exit to Factory 2088 | -8/Materials | Loaded intel: 14 trap records 2289 | -8/Materials | Entered Factory 2289 | -7/Factory | Evolved 2 slots: Utility x2 2594 | -7/Factory | Build established: Scavenger-Skirmisher 2934 | -7/Factory | Build established: Mutant 3266 | -7/Factory | Discovered new exit (range 16) 3298 | -7/Factory | Identified exit to Factory 3299 | -7/Factory | Entered another Factory area 3299 | -6/Factory | Evolved 2 slots: Propulsion x1, Weapon x1 3923 | -6/Factory | Discovered new exit (range 16) 3940 | -6/Factory | Identified exit to Extension 3941 | -6/Factory | Entered Extension 4114 | -6/Extension | Rescued a captive Derelict 4203 | -6/Extension | Rescued a captive Derelict 4255 | -6/Extension | Rescued a captive Derelict 4278 | -6/Extension | Rescued a captive Derelict 4281 | -6/Extension | Spotted B-75 Beast 4301 | -6/Extension | Spotted B-75 Beast 4343 | -6/Extension | Lost 4 allies 4470 | -6/Extension | Rescued A7 4537 | -6/Extension | Rescued a captive Derelict 4538 | -6/Extension | Rescued a captive Derelict 4580 | -6/Extension | Rescued a captive Derelict 4606 | -6/Extension | Discovered new exit (range 10) 4608 | -6/Extension | Discovered new exit (range 6) 4620 | -6/Extension | Disrupted transfer network 4621 | -6/Extension | Identified exit to Factory 4635 | -6/Extension | Entered Factory 4635 | -5/Factory | Accompanied by 11 allies (A7) 4635 | -5/Factory | Evolved 2 slots: Utility x2 4935 | -5/Factory | First assault squad dispatched 5081 | -5/Factory | Lost 6 allies 5251 | -5/Factory | Build established: Scavenger-Gunner 5416 | -5/Factory | Spotted B-75 Beast 5478 | -5/Factory | Discovered new exit (range 4) 5488 | -5/Factory | Identified exit to Factory 5500 | -5/Factory | Entered another Factory area 5500 | -4/Factory | Evolved 2 slots: Power x1, Propulsion x1 5529 | -4/Factory | Lost 9 parts (1p2n3u3w) 5730 | -4/Factory | Discovered new exit (range 13) 5747 | -4/Factory | Identified exit to Upper Caves 5778 | -4/Factory | Build established: Mutant 5784 | -4/Factory | Entered Upper Caves 6280 | -4/Upper Caves | Learned location of Armory (-3) 6280 | -4/Upper Caves | Learned 8 Factory zone layouts 6280 | -4/Upper Caves | Learned Research trap positions 6280 | -4/Upper Caves | Learned Factory emergency access door positions 6280 | -4/Upper Caves | Learned Research stockpile data 6280 | -4/Upper Caves | Learned Armory terminal intel 6401 | -4/Upper Caves | Discovered new exit (range 13) 6414 | -4/Upper Caves | Identified exit to Upper Caves 6437 | -4/Upper Caves | Entered another Upper Caves area 6448 | -4/Upper Caves | Learned Research emergency access door positions 6585 | -4/Upper Caves | Attracted the attention of an 0b10 checkpoint 6759 | -4/Upper Caves | Build established: Bomber 6827 | -4/Upper Caves | Learned location of Testing (-3) 6979 | -4/Upper Caves | Attacked by a delusional Derelict stockpiling parts 7237 | -4/Upper Caves | Discovered new exit (range 7) 7247 | -4/Upper Caves | Identified exit to Research 7249 | -4/Upper Caves | Entered Research 7249 | -3/Research | Evolved 2 slots: Utility x2 7250 | -3/Research | Identified exit to Armory 7251 | -3/Research | Loaded intel: 110 trap records 7558 | -3/Research | Discovered new exit (range 8) 7573 | -3/Research | Build established: Mutant 7573 | -3/Research | Entered Testing 7830 | -3/Testing | Found Prototype Energy Cannon 7831 | -3/Testing | Identified Disintegrator 7865 | -3/Testing | Spotted Striker 7866 | -3/Testing | Spotted Striker 7869 | -3/Testing | Spotted Alpha 7 7875 | -3/Testing | Stole the SGEMP Prototype 7896 | -3/Testing | Destroyed Striker 7904 | -3/Testing | Destroyed Striker 7904 | -3/Testing | Core integrity fell below 50% 7918 | -3/Testing | Core integrity fell below 20% 7926 | -3/Testing | Destroyed by Alpha 7 with Multirail Last Messages --------------- 07917_ HV Slug penetrates Alpha 7. 07917_ HV Slug penetrates Machine. 07917_ Penetrated by Slug. 07919_ HV Slug penetrates Alpha 7. 07920_ Penetrated by Slug. 07920_ Slug penetrates Machine. 07921_ HV Slug penetrates Alpha 7. 07921_ Alpha 7 suffers critical hit (Destroy). 07921_ Destroyed Prototype Reactor. 07921_ HV Slug penetrates Machine. 07921_ HV Slug penetrates Reinforced Barrier. 07921_ Machine Analyzer destroyed. 07921_ Powered Hammer destroyed. 07923_ Slug penetrates Reinforced Barrier. 07923_ Penetrated by Slug. 07923_ Slug penetrates Machine. 07923_ Hyp. Railgun destroyed. 07924_ G-67 Veteran suffers critical hit (Burn). 07925_ M-13 Machinist repairs Adv. Heat Sink. 07926_ Machine collapses. Map ----- +----------------------------------------------------+ | ???????#???????????????????????## | | ??????????????#???????#??????"??# | | ???????????#????????#?????????? | | ????????????????????????#???? | | ???????????????????"?"??????##### | | ???????#???????????????????????## | | ??????????????? ????? ?????????# | | ?????????????????????? ?????????# | | ????????????????????????????????# | | ???? ???????????????????????????# | | ??? ????????????????????????????# | | ???????# ???????????????????????# | | ?????????????????????????????#???? | | ?????????????? ?????????????? ????? | | ????????????????????????????? ????? | | ???? ???????????????????????? ????? | | ??????????????? ???????? ???? ????? | | ????????????????????????????? ????? | | ?????????????#??????????????? ??### | | ????????????????????????????# #?# | | ?????????????????????""""???# #?# | | ???????########??????""""???# #?# | | ????#??#%" """#?#????""""???# #?# | | ???????# m"""#???#??""""???# #?# | | ????#??#"g ""####????? ????# #??? | | ???#???# "@g% ##%#####+###### ##### | | ???????#" 7g= hh | | ???????#" h | | ???????#" # %#### #######+### | | ???????#"""% ####??# #?# | | ???????##### #?????# ### ! | | ???????????####?????#####?# | | ???????#??????#???????????# """ """ | | ?????#????????????????????# """ """ | | ???????????????????#??????# """ """ | | #???????????#????????#????######### | | | | | | | | | | | | | | | | | | | | | | | | | | | | | +----------------------------------------------------+ Best States ------------- Heat Dissipation 65 Energy Generation 35 Energy Capacity 290 Matter Stores 300 Matter Capacity 300 Sight Range 18 Robot Scan Range 15 Terrain Scan Range 20 Terrain Scan Density 10 Armor Coverage 450 Power Shielding 66 Propulsion Shielding 66 Evasion (%) 64 Targeting Accuracy 14 Target Analysis 5 Armor Integrity Analysis 30 Particle Charging 20 Offensive Hacking 10 Defensive Hacking 10 Item Schematics ----------------- None Robot Schematics ------------------ None Fabricated ------------ Nothing Alien Tech Used ----------------- None Achievements -------------- None Challenges ------------ None Game ------ Seed ServoStormStick Manual? 0 Play Time 01:55:24 Cumulative 76.7 hours Start 2024.04.28 @ 14:31:27 End 2024.04.28 @ 16:50:00 Sessions 1 Manual Loads 0 Difficulty Rogue Special Mode None Game No. 64 Rogue 64 Adventurer 0 Explorer 0 Win Type - Total 0 Types 0/0/0/0/0/0/0/0/0 Lore% 45 Gallery% 45 Achievement% 35 Wizard Run 0 Options --------- Layout 2 ASCII 0 Keyboard 0 Movement Mouse Keybinds 0 Fullscreen 1 Font 48/Smallcaps Map View 50x44 Zoom Use 0% Tactical HUD 1 Map Filters NONE Filters NONE Steam 1 RUN: a88838c3-d715-457c-a4c8-7bf325ed668a